Cogmind - Beta 10.2 --- EXPLORER MODE // 2021.02.28 @ 14:34:45 // Winter2019/RPGLIKE Player: PYNTER Result: Escaped! Performance ------------- Evolutions (9) 4500 Regions Visited (28) 5600 Robots Destroyed (186) 930 Value Destroyed (10684) 10684 Prototype IDs (43) 860 Alien Tech Used (3) 600 Bonus (8682) 8682 TOTAL SCORE: 31856 Bonus ------- High Alert Combat Kills 567 Follower Combat Kills 315 Entered Garrisons 1200 Used RIF Installer 3000 Met Data Miner 300 Met Zhirov 300 Win 3000 Cogmind --------- Core Integrity 1335/1350 Matter 272/500 Energy 729/750 System Corruption 0% Temperature Cool (21) Movement Flying (19) Location To Epsilon Eridani Parts ------- > --- POWER (2) -------- Quantum Reactor Quantum Reactor > --- PROPULSION (9) --- Cooled Nuclear Pulse Thruster Cooled Nuclear Pulse Thruster Cooled Nuclear Pulse Thruster Impulse Thruster Q-thruster Impulse Thruster Array Impulse Thruster Array > --- UTILITY (7) ------ Advanced Signal Interpreter Relay Coupler [NC] (47) Relay Coupler [ARC] (28) Relay Coupler [Swarmer] (136) Relay Coupler [Grunt] (102) Relay Coupler [Duelist] (106) Improved System Restoration Module > --- WEAPON (7) ------- Railgun Railgun Railgun Railgun Railgun Molecular Deconstructor > --- INVENTORY (6) ---- Antimatter Reactor Recoil Nullifier Improved Maneuvering Thrusters Reaction Control System Railgun Advanced Remote Datajack Peak State ------------ > --- POWER ------------ Quantum Reactor Quantum Reactor > --- PROPULSION ------- Cooled Nuclear Pulse Thruster Cooled Nuclear Pulse Thruster Cooled Nuclear Pulse Thruster Impulse Thruster Q-thruster Impulse Thruster Array Impulse Thruster Array > --- UTILITY ---------- Advanced Signal Interpreter Relay Coupler [NC] Relay Coupler [ARC] Relay Coupler [Swarmer] Relay Coupler [Grunt] Relay Coupler [Duelist] Improved System Restoration Module > --- WEAPON ----------- Railgun Railgun Railgun Railgun Railgun Molecular Deconstructor > --- INVENTORY -------- Antimatter Reactor Recoil Nullifier Improved Maneuvering Thrusters Reaction Control System Railgun Advanced Remote Datajack [Rating: 168] Favorites ----------- Power Light Nuclear Core Engine Light Ion Engine Power Core Light Nuclear Core Reactor Antimatter Reactor Propulsion VTOL Module Leg Aluminum Leg Hover Unit Hover Unit Flight Unit VTOL Module Utility Improved Signal Interpreter Device Dynamic Insulation System Storage Advanced Matter Compressor Processor Improved Signal Interpreter Hackware Hacking Suite Protection Utility Shielding Weapon Minigun Energy Gun Heavy Particle Gun Ballistic Gun Minigun Special Weapon Improved Remote Datajack Special Melee Weapon Improved Datajack Build | -11 -10 -10 -10 -9 -8 -8 -8 -8 -7 -7 -7 -7 -6 -6 -6 -6 -6 -5 -5 -4 -4 -4 -4 -3 -3 -2 -2 -1 ------- Run | Scr Mat Min Exi Min Mat Gar Mat Gar Fac Low Low Dat Pro Fac Gar Fac Gar Fac Gar Fac Upp Upp Zhi Pro Res Res Gar Acc Slots Evolved 21 | 4 . 1 . 1 3 . 2 . 1 . . . . 1 1 . 1 . . 1 1 . . 1 1 . 1 1 Power 1 | . . . . . 1 . . . . . . . . . . . . . . . . . . . . . . . Propulsion 8 | 1 . . . 1 1 . 1 . . . . . . . . . . . . 1 1 . . . . . 1 1 Utility 6 | 1 . 1 . . 1 . . . . . . . . . 1 . 1 . . . . . . 1 . . . . Weapon 6 | 2 . . . . . . 1 . 1 . . . . 1 . . . . . . . . . . 1 . . . Parts Attached 153 | 8 13 1 . 10 13 2 10 . 3 . 2 . 7 2 8 . 14 2 6 5 5 1 7 2 18 5 2 7 Power 24 | 1 3 . . 1 3 . 1 . 2 . . . 1 . . . . . 2 . . . . 1 2 4 . 3 Engine 9 | 1 3 . . 1 1 . 1 . 2 . . . . . . . . . . . . . . . . . . . Core 5 | . . . . . 2 . . . . . . . 1 . . . . . 2 . . . . . . . . . Reactor 10 | . . . . . . . . . . . . . . . . . . . . . . . . 1 2 4 . 3 Propulsion 34 | 2 5 . . 4 1 . 2 . . . . . 5 1 . . . . . 2 1 . 3 . 4 1 1 2 Treads . | . . . . . . . . . . . . . . . . . . . . . . . . . . . . . Leg 2 | 2 . . . . . . . . . . . . . . . . . . . . . . . . . . . . Wheel . | . . . . . . . . . . . . . . . . . . . . . . . . . . . . . Hover 2 | . 2 . . . . . . . . . . . . . . . . . . . . . . . . . . . Flight 30 | . 3 . . 4 1 . 2 . . . . . 5 1 . . . . . 2 1 . 3 . 4 1 1 2 Utility 42 | 2 1 1 . . 4 . 2 . . . . . . . 5 . 7 . 3 1 1 . 4 1 8 . 1 1 Device 20 | 1 . 1 . . 1 . . . . . . . . . 2 . 3 . 1 . 1 . 3 . 6 . . 1 Storage 2 | . . . . . . . . . . . . . . . . . . . . . . . 1 . 1 . . . Processor 6 | 1 1 . . . 1 . 1 . . . . . . . 1 . . . . 1 . . . . . . . . Hackware 11 | . . . . . . . 1 . . . . . . . 2 . 4 . 2 . . . . 1 . . 1 . Protection 3 | . . . . . 2 . . . . . . . . . . . . . . . . . . . 1 . . . Artifact . | . . . . . . . . . . . . . . . . . . . . . . . . . . . . . Weapon 53 | 3 4 . . 5 5 2 5 . 1 . 2 . 1 1 3 . 7 2 1 2 3 1 . . 4 . . 1 Energy Gun 5 | 1 1 . . . 3 . . . . . . . . . . . . . . . . . . . . . . . Energy Cannon . | . . . . . . . . . . . . . . . . . . . . . . . . . . . . . Ballistic Gun 36 | 2 3 . . 5 2 2 4 . 1 . 1 . 1 1 1 . 6 1 1 1 1 . . . 3 . . . Ballistic Cannon . | . . . . . . . . . . . . . . . . . . . . . . . . . . . . . Launcher . | . . . . . . . . . . . . . . . . . . . . . . . . . . . . . Special Weapon 8 | . . . . . . . . . . . 1 . . . . . . 1 . 1 2 1 . . 1 . . 1 Impact Weapon . | . . . . . . . . . . . . . . . . . . . . . . . . . . . . . Slashing Weapon . | . . . . . . . . . . . . . . . . . . . . . . . . . . . . . Piercing Weapon . | . . . . . . . . . . . . . . . . . . . . . . . . . . . . . Special Melee Weapon 4 | . . . . . . . 1 . . . . . . . 2 . 1 . . . . . . . . . . . Unidentified Prototypes 13 | . . 1 . . 1 . . . . . . . . . 1 . . . . . 2 . 4 . 4 . . . Parts Lost . | . . . . . . . . . . . . . . . . . . . . . . . . . . . . . Power . | . . . . . . . . . . . . . . . . . . . . . . . . . . . . . Propulsion . | . . . . . . . . . . . . . . . . . . . . . . . . . . . . . Utility . | . . . . . . . . . . . . . . . . . . . . . . . . . . . . . Weapon . | . . . . . . . . . . . . . . . . . . . . . . . . . . . . . Highest Loss Streak . | . . . . . . . . . . . . . . . . . . . . . . . . . . . . . Average Slot Usage (%) 97 | . 99 92 100 100 99 100 100 100 100 100 100 100 100 100 100 100 99 100 98 96 94 91 89 90 93 95 92 91 Engine 3 | . 11 11 11 10 10 . 2 6 6 6 6 6 4 . . . . . . . . . . . . . . . Core 6 | . . . . . 4 15 11 6 6 6 6 6 7 11 11 11 10 10 8 10 9 9 9 7 2 . . . Flight 27 | . 11 22 22 28 30 30 34 33 31 31 31 31 31 29 27 27 26 26 26 26 26 28 28 27 25 26 25 28 Device 4 | . 1 3 11 10 7 7 6 6 6 6 6 6 6 5 3 . 1 5 1 . 4 4 3 4 3 4 4 4 Processor 10 | . 23 22 22 20 15 15 14 13 12 12 12 12 12 11 14 11 5 5 5 5 4 4 4 4 4 4 4 4 Hackware 11 | . . . . . . . 2 6 6 6 6 6 6 5 8 16 20 21 24 25 19 19 19 22 21 21 20 20 Energy Gun 2 | . 12 11 11 10 8 15 9 . . . . . . . . . . . . . . . . . . . . . Ballistic Gun 22 | . 24 22 22 20 13 7 11 20 25 25 24 25 28 34 31 27 27 26 29 26 23 15 14 13 24 26 25 23 Special Weapon 1 | . . . . . . . . . . . . . . . . . . 2 2 3 4 8 9 9 4 4 4 4 Special Melee Weapon 1 | . . . . . . . . 6 6 6 6 6 2 . 1 5 4 2 . . . . . . . . . . Naked Turns . | . . . . . . . . . . . . . . . . . . . . . . . . . . . . . Heaviest Build 85 | 10 10 7 7 10 20 20 26 26 30 25 25 25 27 30 30 26 41 42 43 44 47 47 41 52 78 80 80 85 Greatest Support 117 | 20 20 13 13 17 21 21 26 31 31 31 31 31 35 38 38 38 38 43 43 58 63 63 75 75 91 87 104 117 Greatest Overweight (x) 1 | 1 1 . . . 1 . . . . . . . . . . . 1 . . . . . . . 1 . . . Average Overweight (x) . | . . . . . . . . . . . . . . . . . . . . . . . . . . . . . Largest Inventory Capacity 6 | 4 4 4 4 4 4 4 4 4 4 4 4 4 4 4 4 4 5 5 5 5 5 5 5 5 6 6 6 6 Average Capacity 4 | 4 4 4 4 4 4 4 4 4 4 4 4 4 4 4 4 4 4 5 5 5 5 5 5 5 5 6 6 6 Most Carried 6 | 4 4 4 4 4 4 4 4 4 4 4 4 4 4 4 4 4 5 5 5 5 5 5 5 5 6 6 6 6 Average Carried 4 | 2 3 4 4 3 3 4 3 3 3 3 4 4 4 3 3 4 4 5 4 4 4 4 5 4 5 5 5 4 Final Capacity 6 | 4 4 4 4 4 4 4 4 4 4 4 4 4 4 4 4 4 5 5 5 5 5 5 5 5 6 6 6 6 Final Carried 6 | 4 4 4 4 4 4 4 3 4 4 4 4 4 4 4 4 4 5 5 5 5 5 5 5 4 6 6 5 6 Class Distribution -------------------- 32% | Wizard-Sprinter 25% | Hacker-Scout 15% | Hacker-Gunner 15% | Hacker-Sprinter 10% | Wizard-Scout Dominant Class ---------------- Hacker-Gunner | -10/Materials Hacker-Gunner | -10/Mines Hacker-Gunner | -10/Exiles Hacker-Gunner | -9/Mines Hacker-Gunner | -8/Materials Hacker-Sprinter | -8/Garrison Hacker-Sprinter | -8/Materials Hacker-Sprinter | -8/Garrison Wizard-Sprinter | -7/Factory Wizard-Sprinter | -7/Lower Caves Wizard-Sprinter | -7/Lower Caves Wizard-Sprinter | -7/Data Miner Wizard-Sprinter | -6/Proximity Caves Wizard-Sprinter | -6/Factory Wizard-Sprinter | -6/Garrison Wizard-Sprinter | -6/Factory Wizard-Sprinter | -6/Garrison Wizard-Scout | -5/Factory Wizard-Scout | -5/Garrison Wizard-Scout | -4/Factory Hacker-Scout | -4/Upper Caves Hacker-Scout | -4/Upper Caves Hacker-Scout | -4/Zhirov Hacker-Scout | -3/Proximity Caves Hacker-Scout | -3/Research Hacker-Scout | -2/Research Hacker-Scout | -2/Garrison Hacker-Scout | -1/Access Resources | -11 -10 -10 -10 -9 -8 -8 -8 -8 -7 -7 -7 -7 -6 -6 -6 -6 -6 -5 -5 -4 -4 -4 -4 -3 -3 -2 -2 -1 ----------- Run | Scr Mat Min Exi Min Mat Gar Mat Gar Fac Low Low Dat Pro Fac Gar Fac Gar Fac Gar Fac Upp Upp Zhi Pro Res Res Gar Acc Matter Collected 8092 | 261 213 . . 146 124 86 200 553 110 . 20 . 143 245 985 . 1027 63 958 141 720 262 . 77 1096 60 445 157 Remotely . | . . . . . . . . . . . . . . . . . . . . . . . . . . . . . Salvage Created 6966 | . 373 . . 144 124 211 516 491 122 . . . 103 148 616 . 678 . 823 69 503 285 . 53 1154 . 445 108 Parts 407 | . 28 . . 13 13 7 35 33 7 . . . 16 9 41 . 36 . 42 13 39 5 . . 46 . 14 10 Haulers Intercepted 1 | . . . . . . . . . . . . . . . . . . . . . . . . . 1 . . . Recyclers Shooed 3 | . 1 . . . . . . . . . . . . 2 . . . . . . . . . . . . . . Parts Field Recycled . | . . . . . . . . . . . . . . . . . . . . . . . . . . . . . Retrieved Matter . | . . . . . . . . . . . . . . . . . . . . . . . . . . . . . Parts Self-Destructed . | . . . . . . . . . . . . . . . . . . . . . . . . . . . . . Prevented . | . . . . . . . . . . . . . . . . . . . . . . . . . . . . . Kills | -11 -10 -10 -10 -9 -8 -8 -8 -8 -7 -7 -7 -7 -6 -6 -6 -6 -6 -5 -5 -4 -4 -4 -4 -3 -3 -2 -2 -1 ------- Run | Scr Mat Min Exi Min Mat Gar Mat Gar Fac Low Low Dat Pro Fac Gar Fac Gar Fac Gar Fac Upp Upp Zhi Pro Res Res Gar Acc Combat Hostiles Destroyed 165 | . 8 . . 9 2 3 10 18 1 . . . 9 3 17 . 16 . 19 6 19 . . 2 12 . 11 . Guns 162 | . 8 . . 9 2 3 10 18 1 . . . 9 3 17 . 16 . 19 6 19 . . . 12 . 10 . AOE 1 | . . . . . . . . . . . . . . . . . . . . . . . . . . . 1 . Classes Destroyed 15 | . 5 . . . 1 . 1 . . . . . 1 1 2 . 1 . . . 2 . . . 1 . . . Worker 2 | . . . . . . . . . . . . . . 1 . . . . . . . . . . 1 . . . Builder 1 | . 1 . . . . . . . . . . . . . . . . . . . . . . . . . . . Hauler 1 | . . . . . . . . . . . . . . . . . . . . . . . . . 1 . . . Recycler 2 | . 1 . . . . . . . . . . . . . . . . . . . . . . . 1 . . . Operator 2 | . . . . . . . 2 . . . . . . . . . . . . . . . . . . . . . Drone 1 | . . . . . . . . . . . . . . . . . . . . . 1 . . . . . . . Watcher 14 | . 3 . . . 2 . 3 . 1 . . . . . . . . . . 1 . . . . 1 . . 3 Swarmer 52 | . 2 . . 9 . . . 5 . . . . 7 1 3 . 5 . 7 6 5 . . 2 . . . . Grunt 61 | . 6 . . . . 2 6 6 . . . . . 1 10 . 9 . 7 . 2 . . . 9 . 3 . Brawler 8 | . . . . . . . . . . . . . . . 1 . . . 1 . 6 . . . . . . . Duelist 5 | . . . . . . . . . . . . . . . 1 . . . 1 . 1 . . . . . 2 . Sentry 24 | . . . . . 2 1 4 7 1 . . . 1 1 2 . . . 1 . 2 . . . 1 . 1 . Hunter 6 | . . . . . . . . . . . . . . . . . . . . . 2 . . . 2 . 2 . Programmer 5 | . . . . . . . . . . . . . 1 . . . . . 1 . . . . . . . 3 . Behemoth 3 | . . . . . . . . . . . . . . . . . 2 . 1 . . . . . . . . . Decomposer 5 | . . . . . . . . . . . . . . . . . . . . . . 5 . . . . . . Best Kill Streak 12 | . 3 . . 3 2 2 3 7 2 . . . 5 3 5 . 5 . 10 7 12 . . 2 8 . 9 3 Combat Bots Only 12 | . 2 . . 3 2 2 2 7 1 . . . 5 2 5 . 5 . 10 3 12 . . 2 8 . 9 . Max Kills in Single Turn 4 | . 2 . . 1 1 1 1 2 1 . . . 2 2 2 . 1 . 2 2 2 2 . 1 2 . 4 1 Gunslinging 2 | . . . . . . . . 1 . . . . 1 . 1 . . . 1 1 1 . . . 1 . 2 . Exploded 1 | . . . . . . . . . . . . . . . . . . . . . . . . . . . 1 . Melee . | . . . . . . . . . . . . . . . . . . . . . . . . . . . . . Uniques/NPCs Destroyed . | . . . . . . . . . . . . . . . . . . . . . . . . . . . . . Combat | -11 -10 -10 -10 -9 -8 -8 -8 -8 -7 -7 -7 -7 -6 -6 -6 -6 -6 -5 -5 -4 -4 -4 -4 -3 -3 -2 -2 -1 -------- Run | Scr Mat Min Exi Min Mat Gar Mat Gar Fac Low Low Dat Pro Fac Gar Fac Gar Fac Gar Fac Upp Upp Zhi Pro Res Res Gar Acc Damage Taken 5070 | . 151 . . 94 72 78 327 223 60 . . . 146 89 473 . 674 . 1122 95 379 . . 85 283 69 650 . Core 4005 | . 122 . . 74 57 62 263 174 44 . . . 119 68 364 . 534 . 884 73 301 . . 67 220 54 525 . Absorbed by Shields 145 | . . . . . . . . . . . . . . . 6 . 14 . 125 . . . . . . . . . Redirected to Core 3407 | . 81 . . 65 48 53 193 147 38 . . . 84 52 316 . 448 . 784 73 273 . . 67 211 54 420 . Core Remaining (%) 96 | 100 . . . 99 . . . 98 . . . . 100 . . . 100 . 100 . . . . 87 100 . 78 98 Volleys Fired 411 | . 32 . . 14 8 9 35 34 5 . . . 14 9 40 . 40 5 41 7 28 15 9 4 27 . 17 18 Largest 6 | . 3 . . 3 3 3 3 3 4 . . . 5 6 6 . 6 1 6 4 5 5 1 1 6 . 6 6 Hottest 210 | . 80 . . 93 130 130 130 75 100 . . . 125 150 150 . 155 40 190 140 175 175 . . 210 . 210 210 Shots Fired 1624 | . 92 . . 37 24 27 105 102 20 . . . 61 54 208 . 208 5 193 28 136 19 9 4 158 . 97 37 Gun 1568 | . 92 . . 37 24 27 105 102 20 . . . 61 54 208 . 208 . 184 28 135 5 . . 158 . 97 23 Cannon . | . . . . . . . . . . . . . . . . . . . . . . . . . . . . . Launcher . | . . . . . . . . . . . . . . . . . . . . . . . . . . . . . Special 56 | . . . . . . . . . . . . . . . . . . 5 9 . 1 14 9 4 . . . 14 Kinetic 1452 | . 62 . . 28 15 9 55 102 20 . . . 61 54 208 . 208 . 184 28 135 5 . . 158 . 97 23 Thermal 116 | . 30 . . 9 9 18 50 . . . . . . . . . . . . . . . . . . . . . Explosive . | . . . . . . . . . . . . . . . . . . . . . . . . . . . . . Electromagnetic . | . . . . . . . . . . . . . . . . . . . . . . . . . . . . . Robot Hit Streak 49 | . 49 . . 8 22 32 38 37 39 . . . 23 19 43 . 37 17 37 13 24 9 . 11 34 . 47 16 Robot Miss Streak 3 | . 1 . . 1 . 1 3 1 1 . . . 2 1 2 . 2 . 2 1 2 2 . . 1 . 2 1 Penetration Max 2 | . . . . . . . . . . . . . . . . . . . 1 1 1 1 . . 2 . 2 . Secondary Targets 54 | . . . . 2 . 1 3 4 . . . . 4 . 5 . 4 . 11 1 9 . . . 5 . 5 . Max Gunslinging Chain 3 | . . . . 1 . 1 1 1 . . . . 1 . 2 . 1 . 1 1 2 . . . 1 . 3 . Shots Hit Robots 1221 | . 71 . . 21 19 23 78 77 15 1 . . 46 44 149 . 162 5 159 18 99 13 . 4 115 . 83 19 Core Hits 417 | . 23 . . 11 8 6 32 34 5 . . . 15 13 53 . 48 . 44 8 39 2 . . 41 . 28 7 Critical Hits 13 | . 1 . . . . . . . . . . . . . 3 . 1 . 2 . 2 . . . 3 . 1 . Critical Kills 5 | . 1 . . . . . . . . . . . . . 1 . . . . . 1 . . . 2 . . . Critical Parts Destroyed 7 | . . . . . . . . . . . . . . . 2 . 1 . 1 . 1 . . . 1 . 1 . Melee Attacks 17 | . . . . . . . . . . 1 . . . . 3 . 13 . . . . . . . . . . . Impact . | . . . . . . . . . . . . . . . . . . . . . . . . . . . . . Slashing . | . . . . . . . . . . . . . . . . . . . . . . . . . . . . . Piercing . | . . . . . . . . . . . . . . . . . . . . . . . . . . . . . Sneak Attacks 4 | . . . . . . . . . . 1 . . . . . . 3 . . . . . . . . . . . Combat Hostiles 2 | . . . . . . . . . . . . . . . . . 2 . . . . . . . . . . . Follow-up Attacks . | . . . . . . . . . . . . . . . . . . . . . . . . . . . . . Damage Inflicted 21506 | . 705 . . 141 332 389 1279 1220 230 . . . 681 679 2163 . 2504 . 3436 462 2146 47 . . 2479 . 2285 328 Guns 21506 | . 705 . . 141 332 389 1279 1220 230 . . . 681 679 2163 . 2504 . 3436 462 2146 47 . . 2479 . 2285 328 Cannons . | . . . . . . . . . . . . . . . . . . . . . . . . . . . . . Explosions . | . . . . . . . . . . . . . . . . . . . . . . . . . . . . . Melee . | . . . . . . . . . . . . . . . . . . . . . . . . . . . . . Ramming . | . . . . . . . . . . . . . . . . . . . . . . . . . . . . . Kinetic 19756 | . 410 . . 62 148 54 422 1220 230 . . . 681 679 2163 . 2504 . 3436 462 2146 47 . . 2479 . 2285 328 Thermal 1750 | . 295 . . 79 184 335 857 . . . . . . . . . . . . . . . . . . . . . Explosive . | . . . . . . . . . . . . . . . . . . . . . . . . . . . . . Electromagnetic . | . . . . . . . . . . . . . . . . . . . . . . . . . . . . . Impact . | . . . . . . . . . . . . . . . . . . . . . . . . . . . . . Slashing . | . . . . . . . . . . . . . . . . . . . . . . . . . . . . . Piercing . | . . . . . . . . . . . . . . . . . . . . . . . . . . . . . Highest Corruption 4 | . 1 1 1 1 . . . . . . . . . . . . . . 2 . . . . . . . 4 1 Average Corruption 1 | . 1 1 1 1 . . . . . . . . . . . . . . 1 . . . . . . . 3 1 Corruption Purged 1 | . . . . . . . . . . . . . . . . . . . . . . . . . . . . 1 Effects 11 | . 2 . . 1 . . . . . . . . . . . . . . 4 . . . . . . . 3 1 Message Errors 3 | . . . . 1 . . . . . . . . . . . . . . 1 . . . . . . . 1 . Data Loss (minor) 1 | . 1 . . . . . . . . . . . . . . . . . . . . . . . . . . . Targeting Errors 6 | . 1 . . . . . . . . . . . . . . . . . 3 . . . . . . . 2 . Weapon Failures 1 | . . . . . . . . . . . . . . . . . . . . . . . . . . . . 1 Overload Shots . | . . . . . . . . . . . . . . . . . . . . . . . . . . . . . Overflow Damage . | . . . . . . . . . . . . . . . . . . . . . . . . . . . . . Projectiles . | . . . . . . . . . . . . . . . . . . . . . . . . . . . . . Explosions . | . . . . . . . . . . . . . . . . . . . . . . . . . . . . . Melee . | . . . . . . . . . . . . . . . . . . . . . . . . . . . . . Knockbacks . | . . . . . . . . . . . . . . . . . . . . . . . . . . . . . Impact . | . . . . . . . . . . . . . . . . . . . . . . . . . . . . . Kinetic . | . . . . . . . . . . . . . . . . . . . . . . . . . . . . . Secondary . | . . . . . . . . . . . . . . . . . . . . . . . . . . . . . Self-Inflicted Damage 72 | . . . . . . . . 41 . . . . . . 31 . . . . . . . . . . . . . Shots 2 | . . . . . . . . 1 . . . . . . 1 . . . . . . . . . . . . . Rammed . | . . . . . . . . . . . . . . . . . . . . . . . . . . . . . Targets Rammed . | . . . . . . . . . . . . . . . . . . . . . . . . . . . . . Kicked . | . . . . . . . . . . . . . . . . . . . . . . . . . . . . . Crushed . | . . . . . . . . . . . . . . . . . . . . . . . . . . . . . Highest Temperature 268 | . 152 . . 8 135 268 144 18 54 . . . 7 41 48 . 61 . 16 . 10 14 . . 36 . 12 32 Average Temperature 40 | . 47 . . 6 57 134 51 8 29 . . . 4 20 18 . 16 . 4 . 4 10 . . 10 . 7 15 Received Heat Transfer 1773 | . 105 . . . 45 72 243 135 36 . . . 36 30 252 . 261 . 378 . 36 . . . 72 27 45 . Effects 1 | . . . . . . 1 . . . . . . . . . . . . . . . . . . . . . . Interference 1 | . . . . . . 1 . . . . . . . . . . . . . . . . . . . . . . Siege Activations . | . . . . . . . . . . . . . . . . . . . . . . . . . . . . . Robots Corrupted . | . . . . . . . . . . . . . . . . . . . . . . . . . . . . . Combat Hostiles . | . . . . . . . . . . . . . . . . . . . . . . . . . . . . . Parts Fried . | . . . . . . . . . . . . . . . . . . . . . . . . . . . . . Impact Corruptions . | . . . . . . . . . . . . . . . . . . . . . . . . . . . . . Robots Melted . | . . . . . . . . . . . . . . . . . . . . . . . . . . . . . Combat Hostiles . | . . . . . . . . . . . . . . . . . . . . . . . . . . . . . Parts Melted 7 | . . . . . . 1 5 . . . . . . . . . 1 . . . . . . . . . . . Heat Transferred 3440 | . 675 . . 175 333 629 1628 . . . . . . . . . . . . . . . . . . . . . Parts Sabotaged . | . . . . . . . . . . . . . . . . . . . . . . . . . . . . . Parts Stolen . | . . . . . . . . . . . . . . . . . . . . . . . . . . . . . Parts Stripped . | . . . . . . . . . . . . . . . . . . . . . . . . . . . . . Power Chain Reactions . | . . . . . . . . . . . . . . . . . . . . . . . . . . . . . Missiles Intercepted . | . . . . . . . . . . . . . . . . . . . . . . . . . . . . . Alert | -11 -10 -10 -10 -9 -8 -8 -8 -8 -7 -7 -7 -7 -6 -6 -6 -6 -6 -5 -5 -4 -4 -4 -4 -3 -3 -2 -2 -1 ------- Run | Scr Mat Min Exi Min Mat Gar Mat Gar Fac Low Low Dat Pro Fac Gar Fac Gar Fac Gar Fac Upp Upp Zhi Pro Res Res Gar Acc Peak Influence 861 | . 269 27 . 239 202 189 379 633 333 . . . . 221 861 335 817 367 658 256 . . . . 362 152 382 252 Initial 335 | . . 27 . . 65 99 67 115 246 . . . . . 118 335 180 318 198 256 . . . . 19 152 88 173 Average 269 | . 106 15 . 131 106 135 213 332 263 . . . . 85 539 335 412 330 399 201 . . . . 170 152 224 212 Maximum Alert Level 3 | . 1 . . 1 1 . 1 2 1 . . . . 1 3 1 3 1 2 1 . . . . 1 . 1 1 Low Security (%) 43 | 100 77 100 . 76 90 100 47 23 . . . . . 93 15 . 14 . 9 44 . . . . 62 100 52 37 Level 1 39 | . 22 . . 23 9 . 52 53 100 . . . . 6 18 100 36 100 46 55 . . . . 37 . 47 62 Level 2 11 | . . . . . . . . 23 . . . . . . 22 . 34 . 44 . . . . . . . . . Level 3 6 | . . . . . . . . . . . . . . . 43 . 14 . . . . . . . . . . . Level 4 . | . . . . . . . . . . . . . . . . . . . . . . . . . . . . . Level 5 . | . . . . . . . . . . . . . . . . . . . . . . . . . . . . . High Security . | . . . . . . . . . . . . . . . . . . . . . . . . . . . . . Max Security . | . . . . . . . . . . . . . . . . . . . . . . . . . . . . . Squads Dispatched 6 | . 1 . . . . . . . . . . . . 2 . . . . . 1 . . . . 1 . . 1 Investigation 1 | . 1 . . . . . . . . . . . . . . . . . . . . . . . . . . . Extermination 1 | . . . . . . . . . . . . . . . . . . . . . . . . . . . . 1 Reinforcement 3 | . . . . . . . . . . . . . . 1 . . . . . 1 . . . . 1 . . . Assault . | . . . . . . . . . . . . . . . . . . . . . . . . . . . . . Garrison 1 | . . . . . . . . . . . . . . 1 . . . . . . . . . . . . . . Intercept . | . . . . . . . . . . . . . . . . . . . . . . . . . . . . . Construction Impeded 1 | . . . . . . . . . . . . . . . . . . . . 1 . . . . . . . . Haulers Reinforced 1 | . . . . . . . . . . . . . . . . . . . . . . . . . 1 . . . Stealth | -11 -10 -10 -10 -9 -8 -8 -8 -8 -7 -7 -7 -7 -6 -6 -6 -6 -6 -5 -5 -4 -4 -4 -4 -3 -3 -2 -2 -1 --------- Run | Scr Mat Min Exi Min Mat Gar Mat Gar Fac Low Low Dat Pro Fac Gar Fac Gar Fac Gar Fac Upp Upp Zhi Pro Res Res Gar Acc Distress Signals 7 | . 1 . . . 1 . 2 . 1 . . . . . . . . . 2 . . . . . . . . . Communications Jammed . | . . . . . . . . . . . . . . . . . . . . . . . . . . . . . Distress Signals . | . . . . . . . . . . . . . . . . . . . . . . . . . . . . . Times Spotted 267 | . 14 . . 9 4 4 15 19 3 2 . . 10 6 19 . 40 3 37 8 31 . . 2 18 1 16 6 Peak Tracking Total 17 | . 3 . . 3 2 2 3 4 2 2 . . 3 3 5 . 6 2 14 5 12 . . 2 4 1 17 3 Tactical Retreats 25 | . 1 . . . . 1 1 . . 1 . . . . 1 . 6 . 4 1 5 . . . 1 . 2 1 Traps | -11 -10 -10 -10 -9 -8 -8 -8 -8 -7 -7 -7 -7 -6 -6 -6 -6 -6 -5 -5 -4 -4 -4 -4 -3 -3 -2 -2 -1 ------- Run | Scr Mat Min Exi Min Mat Gar Mat Gar Fac Low Low Dat Pro Fac Gar Fac Gar Fac Gar Fac Upp Upp Zhi Pro Res Res Gar Acc Traps Triggered 36 | . 3 . . . . 4 1 5 . . . . . . 6 . 9 . 4 . . . . . . . 3 1 Indirectly . | . . . . . . . . . . . . . . . . . . . . . . . . . . . . . Trap Hack Attempts 14 | . . . . . . . . 7 1 . . . . . . . 6 . . . . . . . . . . . Triggered . | . . . . . . . . . . . . . . . . . . . . . . . . . . . . . Disarmed 7 | . . . . . . . 6 1 . . . . . . . . . . . . . . . . . . . . Reprogrammed 6 | . . . . . . . . 4 1 . . . . . . . 1 . . . . . . . . . . . Reused 1 | . . . . . . . . . . . . . . . . . 1 . . . . . . . . . . . Traps Extracted . | . . . . . . . . . . . . . . . . . . . . . . . . . . . . . Installed . | . . . . . . . . . . . . . . . . . . . . . . . . . . . . . Triggered 2 | . . . . . . . . . . . 1 . . . . . 1 . . . . . . . . . . . Machines | -11 -10 -10 -10 -9 -8 -8 -8 -8 -7 -7 -7 -7 -6 -6 -6 -6 -6 -5 -5 -4 -4 -4 -4 -3 -3 -2 -2 -1 ---------- Run | Scr Mat Min Exi Min Mat Gar Mat Gar Fac Low Low Dat Pro Fac Gar Fac Gar Fac Gar Fac Upp Upp Zhi Pro Res Res Gar Acc Machines Disabled 24 | . . . . 1 . . 3 2 . . . . . . 5 . 5 . 2 1 3 . . . . . 2 . Max in Single Turn 2 | . . . . 1 . . 1 2 . . . . . . 2 . 1 . 1 1 1 . . . . . 1 . Garrison Relay 11 | . . . . . . . . . . . . . . . 3 . 5 . 2 . . . . . . . 1 . Phase Generator 3 | . . . . . . . . 1 . . . . . . 1 . . . . . . . . . . . 1 . Machines Sabotaged . | . . . . . . . . . . . . . . . . . . . . . . . . . . . . . Garrisons Compromised . | . . . . . . . . . . . . . . . . . . . . . . . . . . . . . Overloaded Fab Kills . | . . . . . . . . . . . . . . . . . . . . . . . . . . . . . Fab Network Shutdowns . | . . . . . . . . . . . . . . . . . . . . . . . . . . . . . Hacking | -11 -10 -10 -10 -9 -8 -8 -8 -8 -7 -7 -7 -7 -6 -6 -6 -6 -6 -5 -5 -4 -4 -4 -4 -3 -3 -2 -2 -1 --------- Run | Scr Mat Min Exi Min Mat Gar Mat Gar Fac Low Low Dat Pro Fac Gar Fac Gar Fac Gar Fac Upp Upp Zhi Pro Res Res Gar Acc Machines Accessed 41 | . 3 . . . 2 . 2 . 4 . 1 4 . 2 . 1 . 2 . 2 2 . 9 . 5 1 . 1 Terminals 16 | . 2 . . . 1 . 1 . 2 . . . . 1 . . . 1 . 2 . . . . 5 . . 1 Fabricators 1 | . . . . . . . . . 1 . . . . . . . . . . . . . . . . . . . Repair Stations . | . . . . . . . . . . . . . . . . . . . . . . . . . . . . . Recycling Units 1 | . 1 . . . . . . . . . . . . . . . . . . . . . . . . . . . Scanalyzers 1 | . . . . . . . . . 1 . . . . . . . . . . . . . . . . . . . Garrison Access 6 | . . . . . 1 . 1 . . . . . . 1 . 1 . 1 . . . . . . . 1 . . Total Hacks 144 | . 4 . . . 4 . 5 . 12 . 1 31 . 5 . 2 . 2 . 9 2 . 48 . 15 1 . 3 Successful 140 | . 3 . . . 4 . 5 . 9 . 1 31 . 5 . 2 . 2 . 9 2 . 48 . 15 1 . 3 Failed 4 | . 1 . . . . . . . 3 . . . . . . . . . . . . . . . . . . . Catastrophic . | . . . . . . . . . . . . . . . . . . . . . . . . . . . . . Database Lockouts . | . . . . . . . . . . . . . . . . . . . . . . . . . . . . . Manual 9 | . 1 . . . . . . . 2 . . . . . . . . 1 . . 2 . . . 3 . . . Terminals 48 | . 3 . . . 2 . 3 . 9 . . . . 3 . . . 1 . 9 . . . . 15 . . 3 Fabricators 1 | . . . . . . . . . 1 . . . . . . . . . . . . . . . . . . . Repair Stations . | . . . . . . . . . . . . . . . . . . . . . . . . . . . . . Recycling Units 1 | . 1 . . . . . . . . . . . . . . . . . . . . . . . . . . . Scanalyzers 2 | . . . . . . . . . 2 . . . . . . . . . . . . . . . . . . . Garrison Access 10 | . . . . . 2 . 2 . . . . . . 2 . 2 . 1 . . . . . . . 1 . . Terminal Hacks 123 | . 2 . . . 2 . 3 . 7 . 1 31 . 3 . . . . . 9 2 . 48 . 12 . . 3 Record 58 | . . . . . . . . . 1 . . 11 . 1 . . . . . 3 1 . 36 . 3 . . 2 Part Schematic 13 | . . . . . . . . . . . . 9 . . . . . . . . . . 4 . . . . . Robot Schematic 8 | . . . . . . . . . . . . 8 . . . . . . . . . . . . . . . . Robot Analysis 10 | . . . . . . . . . 2 . . . . 1 . . . . . 1 . . 4 . 2 . . . Prototype ID Bank 11 | . . . . . 1 . . . 2 . . 3 . . . . . . . 1 . . 4 . . . . . Open Door 2 | . . . . . . . . . . . 1 . . . . . . . . . 1 . . . . . . . Level Access Points 2 | . . . . . . . . . 1 . . . . . . . . . . . . . . . . . . 1 Emergency Access Points 2 | . . . . . . . 1 . . . . . . . . . . . . . . . . . 1 . . . Terminal Index 1 | . . . . . . . . . . . . . . . . . . . . . . . . . 1 . . . Recycling Unit Index 1 | . . . . . . . . . . . . . . . . . . . . . . . . . 1 . . . Garrison Index 1 | . . . . . . . . . . . . . . . . . . . . . . . . . 1 . . . Unreport Threat 1 | . . . . . . . . . . . . . . . . . . . . 1 . . . . . . . . Locate Traps 7 | . . . . . 1 . 1 . 1 . . . . 1 . . . . . 1 . . . . 2 . . . Disarm Traps 1 | . . . . . . . 1 . . . . . . . . . . . . . . . . . . . . . Transport Status 1 | . 1 . . . . . . . . . . . . . . . . . . . . . . . . . . . Reinforcement Status 1 | . . . . . . . . . . . . . . . . . . . . . . . . . 1 . . . Registered Components 1 | . 1 . . . . . . . . . . . . . . . . . . . . . . . . . . . Zone Layout 2 | . . . . . . . . . . . . . . . . . . . . 2 . . . . . . . . Fabricator Hacks 1 | . . . . . . . . . 1 . . . . . . . . . . . . . . . . . . . Network Status 1 | . . . . . . . . . 1 . . . . . . . . . . . . . . . . . . . Repair Station Hacks . | . . . . . . . . . . . . . . . . . . . . . . . . . . . . . Recycling Unit Hacks . | . . . . . . . . . . . . . . . . . . . . . . . . . . . . . Scanalyzer . | . . . . . . . . . . . . . . . . . . . . . . . . . . . . . Garrison Access Hacks 10 | . . . . . 2 . 2 . . . . . . 2 . 2 . 1 . . . . . . . 1 . . Unlock Access 6 | . . . . . 1 . 1 . . . . . . 1 . 1 . 1 . . . . . . . 1 . . Coupler Status 4 | . . . . . 1 . 1 . . . . . . 1 . 1 . . . . . . . . . . . . Unauthorized Hacks 6 | . 1 . . . . . . . 1 . . . . . . . . 1 . . . . . . 3 . . . Terminals 4 | . . . . . . . . . . . . . . . . . . 1 . . . . . . 3 . . . Assimilate 4 | . . . . . . . . . . . . . . . . . . 1 . . . . . . 3 . . . Fabricators . | . . . . . . . . . . . . . . . . . . . . . . . . . . . . . Repair Stations . | . . . . . . . . . . . . . . . . . . . . . . . . . . . . . Recycling Units 1 | . 1 . . . . . . . . . . . . . . . . . . . . . . . . . . . Tunnel 1 | . 1 . . . . . . . . . . . . . . . . . . . . . . . . . . . Scanalyzers 1 | . . . . . . . . . 1 . . . . . . . . . . . . . . . . . . . Researchers 1 | . . . . . . . . . 1 . . . . . . . . . . . . . . . . . . . Garrison Access . | . . . . . . . . . . . . . . . . . . . . . . . . . . . . . Data Cores Recovered 2 | . . . . . . . 2 . . . . . . . . . . . . . . . . . . . . . Used 1 | . . . . . . . 1 . . . . . . . . . . . . . . . . . . . . . Hacking Detections 14 | . 1 . . . . . 1 . 3 . . . . 2 . . . 2 . 2 . . . . 2 . . 1 Full Trace Events . | . . . . . . . . . . . . . . . . . . . . . . . . . . . . . Feedback Events . | . . . . . . . . . . . . . . . . . . . . . . . . . . . . . Feedback Blocked . | . . . . . . . . . . . . . . . . . . . . . . . . . . . . . Robot Schematics Acquired 8 | . . . . . . . . . . . . 8 . . . . . . . . . . . . . . . . Robots Built . | . . . . . . . . . . . . . . . . . . . . . . . . . . . . . Matter . | . . . . . . . . . . . . . . . . . . . . . . . . . . . . . Time . | . . . . . . . . . . . . . . . . . . . . . . . . . . . . . Total Robot Build Rating . | . . . . . . . . . . . . . . . . . . . . . . . . . . . . . Part Schematics Acquired 13 | . . . . . . . . . . . . 9 . . . . . . . . . . 4 . . . . . Parts Built . | . . . . . . . . . . . . . . . . . . . . . . . . . . . . . Matter . | . . . . . . . . . . . . . . . . . . . . . . . . . . . . . Time . | . . . . . . . . . . . . . . . . . . . . . . . . . . . . . Total Part Build Rating . | . . . . . . . . . . . . . . . . . . . . . . . . . . . . . Parts Repaired . | . . . . . . . . . . . . . . . . . . . . . . . . . . . . . Time . | . . . . . . . . . . . . . . . . . . . . . . . . . . . . . Parts Recycled . | . . . . . . . . . . . . . . . . . . . . . . . . . . . . . Recycled Matter . | . . . . . . . . . . . . . . . . . . . . . . . . . . . . . Retrieved Matter . | . . . . . . . . . . . . . . . . . . . . . . . . . . . . . Retrieved Components . | . . . . . . . . . . . . . . . . . . . . . . . . . . . . . Parts Scanalyzed . | . . . . . . . . . . . . . . . . . . . . . . . . . . . . . Part Schematics Acquired . | . . . . . . . . . . . . . . . . . . . . . . . . . . . . . Parts Damaged . | . . . . . . . . . . . . . . . . . . . . . . . . . . . . . Bothacking | -11 -10 -10 -10 -9 -8 -8 -8 -8 -7 -7 -7 -7 -6 -6 -6 -6 -6 -5 -5 -4 -4 -4 -4 -3 -3 -2 -2 -1 ------------ Run | Scr Mat Min Exi Min Mat Gar Mat Gar Fac Low Low Dat Pro Fac Gar Fac Gar Fac Gar Fac Upp Upp Zhi Pro Res Res Gar Acc Used RIF Installer 6 | . . . . . . 1 . 1 . . . . . . 1 . 1 . 1 . . . . . . . 1 . Threat Obfuscator 1 | . . . . . . . . . . . . . . . . . . . 1 . . . . . . . . . Patrol Navigation 1 | . . . . . . . . 1 . . . . . . . . . . . . . . . . . . . . Watcher Feeds 1 | . . . . . . . . . . . . . . . . . . . . . . . . . . . 1 . Structural Interface 1 | . . . . . . . . . . . . . . . . . 1 . . . . . . . . . . . Program Shield 1 | . . . . . . . . . . . . . . . 1 . . . . . . . . . . . . . Robots Hacked 24 | . . . . . . . . . . 1 . . . . 1 . 11 5 3 . . . . . . . . 3 Non-combat 9 | . . . . . . . . . . 1 . . . . . . . 5 . . . . . . . . . 3 Combat 15 | . . . . . . . . . . . . . . . 1 . 11 . 3 . . . . . . . . . Robot Hacks Applied 25 | . . . . . . . . . . 1 . . . . 2 . 11 5 3 . . . . . . . . 3 parse_system 2 | . . . . . . . . . . 1 . . . . . . 1 . . . . . . . . . . . generate_anomaly 1 | . . . . . . . . . . . . . . . . . . 1 . . . . . . . . . . spike_heat 1 | . . . . . . . . . . . . . . . . . 1 . . . . . . . . . . . streamctrl_high 1 | . . . . . . . . . . . . . . . 1 . . . . . . . . . . . . . formatsys_high 20 | . . . . . . . . . . . . . . . 1 . 9 4 3 . . . . . . . . 3 Relay Couplers Released 17 | . . . . . . . . . . . . . . . 6 . 6 . 4 . . . . . . . 1 . Machine Destruction 17 | . . . . . . . . . . . . . . . 6 . 6 . 4 . . . . . . . 1 . Attached 10 | . . . . . . . . . . . . . . . 2 . 4 . 2 . . . . 1 . . 1 . Robots Rewired . | . . . . . . . . . . . . . . . . . . . . . . . . . . . . . Allies Hacked . | . . . . . . . . . . . . . . . . . . . . . . . . . . . . . Hacks Repelled . | . . . . . . . . . . . . . . . . . . . . . . . . . . . . . Allies | -11 -10 -10 -10 -9 -8 -8 -8 -8 -7 -7 -7 -7 -6 -6 -6 -6 -6 -5 -5 -4 -4 -4 -4 -3 -3 -2 -2 -1 -------- Run | Scr Mat Min Exi Min Mat Gar Mat Gar Fac Low Low Dat Pro Fac Gar Fac Gar Fac Gar Fac Upp Upp Zhi Pro Res Res Gar Acc Total Allies 26 | . . 2 . . . . . . . . . . 1 . 1 . 9 4 3 . . . . . 3 . . 3 Largest Group 5 | . . 2 . . . . . . . . . . 1 1 1 1 5 4 5 . . . . . 2 . . 1 Highest-Rated Group 190 | . . 54 . . . . . . . . . . 94 94 94 29 111 70 190 . . . . . 36 . . 44 Highest-Rated Ally 94 | . . 31 . . . . . . . . . . 94 94 94 29 32 26 49 . . . . . 26 . . 44 Total Orders 7 | . . . . . . . . . . . . . . . . . 5 . . . . . . . . . . 2 STAY 2 | . . . . . . . . . . . . . . . . . 2 . . . . . . . . . . . ROAM 3 | . . . . . . . . . . . . . . . . . 1 . . . . . . . . . . 2 FOLLOW 2 | . . . . . . . . . . . . . . . . . 2 . . . . . . . . . . . Ally Attacks 94 | . . 2 . . . . . . . . . . 3 5 6 . 40 . 38 . . . . . . . . . Total Damage 2578 | . . 22 . . . . . . . . . . 172 184 188 . 698 . 1314 . . . . . . . . . Kills 15 | . . . . . . . . . . . . . . 3 3 . 3 . 6 . . . . . . . . . Allies Corrupted . | . . . . . . . . . . . . . . . . . . . . . . . . . . . . . Allies Melted 1 | . . . . . . . . . . . . . . . 1 . . . . . . . . . . . . . Intel | -11 -10 -10 -10 -9 -8 -8 -8 -8 -7 -7 -7 -7 -6 -6 -6 -6 -6 -5 -5 -4 -4 -4 -4 -3 -3 -2 -2 -1 ------- Run | Scr Mat Min Exi Min Mat Gar Mat Gar Fac Low Low Dat Pro Fac Gar Fac Gar Fac Gar Fac Upp Upp Zhi Pro Res Res Gar Acc Robot Analysis Total 10 | . . . . . . . . . 2 . . . . 1 . . . . . 1 . . 4 . 2 . . . Derelict Logs Recovered 8 | . . 1 . 1 . . . . . 1 1 . 1 . . . . . . . 3 . . . . . . . Drone Launches . | . . . . . . . . . . . . . . . . . . . . . . . . . . . . . Drone Recoveries . | . . . . . . . . . . . . . . . . . . . . . . . . . . . . . Exploration | -11 -10 -10 -10 -9 -8 -8 -8 -8 -7 -7 -7 -7 -6 -6 -6 -6 -6 -5 -5 -4 -4 -4 -4 -3 -3 -2 -2 -1 ------------- Run | Scr Mat Min Exi Min Mat Gar Mat Gar Fac Low Low Dat Pro Fac Gar Fac Gar Fac Gar Fac Upp Upp Zhi Pro Res Res Gar Acc Turns Passed 7144 | 77 548 29 106 287 222 228 493 520 120 111 127 26 404 65 536 14 683 208 402 137 474 199 106 107 373 39 175 328 Spaces Moved 13430 | 57 754 75 287 527 349 269 744 777 350 328 437 93 915 106 847 16 1130 333 526 327 1258 556 212 418 739 137 245 618 Core 11 | 11 . . . . . . . . . . . . . . . . . . . . . . . . . . . . Treads . | . . . . . . . . . . . . . . . . . . . . . . . . . . . . . Legs 76 | 46 30 . . . . . . . . . . . . . . . . . . . . . . . . . . . Wheels . | . . . . . . . . . . . . . . . . . . . . . . . . . . . . . Hover 337 | . 337 . . . . . . . . . . . . . . . . . . . . . . . . . . . Flight 13006 | . 387 75 287 527 349 269 744 777 350 328 437 93 915 106 847 16 1130 333 526 327 1258 556 212 418 739 137 245 618 Fastest Speed 19 | 50 37 37 37 34 31 31 28 28 28 28 28 28 28 28 28 28 28 28 28 25 25 25 22 22 22 22 22 19 Average Speed 28 | 108 48 37 37 36 33 31 28 28 28 28 28 28 28 28 28 28 28 28 28 27 26 25 23 22 22 22 22 19 Slowest Speed 120 | 120 120 37 37 37 114 31 31 28 28 28 28 28 28 28 28 28 108 28 28 28 28 25 25 22 103 22 22 22 Overloaded Moves . | . . . . . . . . . . . . . . . . . . . . . . . . . . . . . Propulsion Burnouts . | . . . . . . . . . . . . . . . . . . . . . . . . . . . . . Robots Hopped 21 | . 2 . . 3 4 . . . 1 . . . . . . . . . 4 1 1 . . . 2 . . 3 Cave-ins Triggered . | . . . . . . . . . . . . . . . . . . . . . . . . . . . . . Teleports 1 | . . . . . . . . . . . . . . . . . . . . . . . 1 . . . . . Exploration Rate (%) 50 | 6 94 23 74 99 35 36 57 81 11 53 60 73 94 5 84 1 96 13 72 10 98 74 62 65 18 6 55 19 Regions Visited 28 Branch Regions 11 Pre-discovered Areas 9 | . 1 1 . 1 . . . . . . 1 1 . . . . . . . . 1 . 3 . . . . . Known Exits Taken 22 | 1 1 1 1 1 1 . 1 . 1 1 1 1 1 1 . 1 . 1 . 1 1 1 1 1 1 1 . . Unknown Exits Taken . | . . . . . . . . . . . . . . . . . . . . . . . . . . . . . Scrap Searched 13 | . . . . . . . . . . . 4 . 1 . . . . . . . 5 2 . 1 . . . . Spaces Dug . | . . . . . . . . . . . . . . . . . . . . . . . . . . . . . Terrain Destroyed 258 | . . . . 1 1 . . 74 . . . . . . 75 . 2 . 14 6 45 1 . . 17 . 21 1 Melee . | . . . . . . . . . . . . . . . . . . . . . . . . . . . . . Projectile 109 | . . . . 1 1 . . . . . . . . . . . 2 . 14 6 45 1 . . 17 . 21 1 AOE 149 | . . . . . . . . 74 . . . . . . 75 . . . . . . . . . . . . . Terrain Rammed . | . . . . . . . . . . . . . . . . . . . . . . . . . . . . . Walls Destroyed . | . . . . . . . . . . . . . . . . . . . . . . . . . . . . . Machines Disabled . | . . . . . . . . . . . . . . . . . . . . . . . . . . . . . Actions | -11 -10 -10 -10 -9 -8 -8 -8 -8 -7 -7 -7 -7 -6 -6 -6 -6 -6 -5 -5 -4 -4 -4 -4 -3 -3 -2 -2 -1 --------- Run | Scr Mat Min Exi Min Mat Gar Mat Gar Fac Low Low Dat Pro Fac Gar Fac Gar Fac Gar Fac Upp Upp Zhi Pro Res Res Gar Acc Total 15835 | 68 871 75 286 599 435 396 961 1025 362 346 440 92 1043 124 1076 24 1413 446 689 355 1328 585 248 424 869 147 316 792 Wait 1005 | . 40 . . 30 48 40 128 113 . 10 . . 86 6 78 9 94 104 17 4 9 10 12 . 35 . . 132 Move 13355 | 56 749 74 286 520 341 267 743 775 347 327 436 92 914 105 845 15 1128 332 516 324 1255 555 211 417 735 136 243 611 Hop 19 | . 2 . . 3 3 . . . 1 . . . . . . . . . 4 1 1 . . . 1 . . 3 Pick Up 82 | 4 12 . . 5 5 2 7 4 2 1 . . 3 1 5 . 7 1 2 2 3 2 . . 8 1 1 4 Fast Attach 67 | 8 7 1 . . 5 1 4 . 2 . 2 . 3 . 2 . 1 . 2 2 4 . 7 1 11 2 1 1 Attach 24 | . . . . 1 2 . 3 . 1 . . . . 1 2 . 2 . . . 2 1 . 1 4 1 1 2 Detach 4 | . . . . . . . 1 . . . . . . . 1 . . . . . 1 . . . 1 . . . Swap 65 | . 6 . . 9 6 1 3 . . . . . 4 1 4 . 11 2 4 3 . . 2 . 3 2 . 4 Drop 143 | . 14 . . 13 9 4 11 3 3 1 2 . 9 1 6 . 8 2 4 5 6 2 7 1 20 5 2 5 Fire 411 | . 32 . . 14 8 9 35 34 5 . . . 14 9 40 . 40 5 41 7 28 15 9 4 27 . 17 18 Melee 17 | . . . . . . . . . . 1 . . . . 3 . 13 . . . . . . . . . . . Ram . | . . . . . . . . . . . . . . . . . . . . . . . . . . . . . Kick . | . . . . . . . . . . . . . . . . . . . . . . . . . . . . . Crush . | . . . . . . . . . . . . . . . . . . . . . . . . . . . . . Escape Stasis 342 | . . . . . . 72 . 72 . . . . . . 56 . 62 . 41 . . . . . . . 39 . Rewire 11 | . . . . . . . . . . . . . . . 1 . 7 . 3 . . . . . . . . . Trap 14 | . . . . . . . . 7 1 . . . . . . . 6 . . . . . . . . . . . Miscellaneous 276 | . 9 . . 4 8 . 26 17 . 6 . . 10 . 33 . 34 . 55 7 19 . . . 24 . 12 12 Route ------- -11/Scrapyard -10/Materials (discovered 4 exits: *Mat x3 / *Min) -10/Mines (discovered 2 exits: *Mat / *Exi) -10/Exiles -9/Mines (discovered 2 exits: *Mat x2) -8/Materials (discovered 2 exits: *Fac / Gar) -8/Garrison -8/Materials (discovered 2 exits: *Fac / Gar) -8/Garrison (discovered 3 exits: *Fac x3) -7/Factory (discovered 5 exits: Fac x4 / *Low) -7/Lower Caves -7/Lower Caves (discovered 2 exits: *Fac / *Dat) -7/Data Miner -6/Proximity Caves -6/Factory -6/Garrison (discovered 3 exits: *Fac x3) -6/Factory -6/Garrison (discovered 3 exits: *Fac x3) -5/Factory -5/Garrison -4/Factory -4/Upper Caves -4/Upper Caves (discovered 2 exits: *Res / *Zhi) -4/Zhirov -3/Proximity Caves -3/Research -2/Research -2/Garrison -1/Access To Epsilon Eridani History --------- Turn | Location | Event 1 | -11/Scrapyard | Upgraded with Propulsion slot (x1) 1 | -11/Scrapyard | Upgraded with Utility slot (x1) 1 | -11/Scrapyard | Upgraded with Weapon slot (x2) 8 | -11/Scrapyard | Identified exit to Materials 8 | -11/Scrapyard | Discovered exit to Materials (range 15) 78 | -11/Scrapyard | Entered Materials 196 | -10/Materials | Identified exit to Materials 196 | -10/Materials | Discovered exit to Materials (range 13) 288 | -10/Materials | Identified exit to Mines 288 | -10/Materials | Discovered exit to Mines (range 13) 317 | -10/Materials | Build established: Hacker-Gunner 360 | -10/Materials | Discovered exit to Materials (range 16) 479 | -10/Materials | Discovered exit to Materials (range 10) 626 | -10/Materials | Entered Mines 626 | -10/Mines | Discovered exit to Materials (range 9) 628 | -10/Mines | Reached level 2 628 | -10/Mines | Upgraded with Utility slot (x1) 640 | -10/Mines | Assembled infested the area 641 | -10/Mines | Found a damaged Exp. Sensor Array with a note attached 642 | -10/Mines | Found Prototype Device 642 | -10/Mines | Identified Exp. Sensor Array 645 | -10/Mines | Assisted by a Guerilla fighting off Assembled 653 | -10/Mines | Deemed a non-threat by the Exiles lab entrance 653 | -10/Mines | Identified exit to Exiles 653 | -10/Mines | Discovered exit to Exiles (range 5) 655 | -10/Mines | Entered Exiles 664 | -10/Exiles | Met 8R-AWN 671 | -10/Exiles | Met EX-HEX 689 | -10/Exiles | Met EX-DEC 706 | -10/Exiles | Visited The Gauntlet 756 | -10/Exiles | Identified exit to Mines 756 | -10/Exiles | Discovered exit to Mines (range 15) 761 | -10/Exiles | Entered Mines 787 | -9/Mines | Reached level 3 808 | -9/Mines | Upgraded with Propulsion slot (x1) 974 | -9/Mines | A weapon hastily lodged in a ceiling crevice suddenly fell to the ground 1023 | -9/Mines | Identified exit to Materials 1023 | -9/Mines | Discovered exit to Materials (range 5) 1041 | -9/Mines | Discovered exit to Materials (range 6) 1048 | -9/Mines | Entered Materials 1050 | -8/Materials | Reached level 4 1050 | -8/Materials | Reached level 5 1050 | -8/Materials | Reached level 6 1050 | -8/Materials | Upgraded with Power slot (x1) 1050 | -8/Materials | Upgraded with Propulsion slot (x1) 1050 | -8/Materials | Upgraded with Utility slot (x1) 1215 | -8/Materials | Reached level 7 1259 | -8/Materials | Identified exit to Factory 1259 | -8/Materials | Discovered exit to Factory (range 13) 1266 | -8/Materials | Identified exit to Garrison 1270 | -8/Materials | Entered Garrison 1272 | -8/Garrison | Installed Relay Interface Framework 1286 | -8/Garrison | Triggered checkpoint 1340 | -8/Garrison | Triggered checkpoint 1472 | -8/Garrison | Triggered checkpoint 1478 | -8/Garrison | Build established: Hacker-Sprinter 1494 | -8/Garrison | Identified exit to Materials 1494 | -8/Garrison | Discovered exit to Materials (range 12) 1498 | -8/Garrison | Entered Materials 1533 | -8/Materials | Reached level 8 1536 | -8/Materials | Upgraded with Propulsion slot (x1) 1829 | -8/Materials | Discovered exit to Factory (range 16) 1919 | -8/Materials | Identified exit to Garrison 1965 | -8/Materials | Reached level 9 1966 | -8/Materials | Upgraded with Weapon slot (x1) 1991 | -8/Materials | Entered Garrison 2012 | -8/Garrison | Discovered exit to Factory (range 13) 2153 | -8/Garrison | Destroyed 7 combat bots 2156 | -8/Garrison | Triggered checkpoint 2197 | -8/Garrison | Discovered exit to Factory (range 15) 2203 | -8/Garrison | Expanded RIF knowledge: Watcher Feeds 2216 | -8/Garrison | Triggered checkpoint 2276 | -8/Garrison | Triggered checkpoint 2281 | -8/Garrison | Reached level 10 2293 | -8/Garrison | Discovered exit to Factory (range 11) 2416 | -8/Garrison | Phase Generator disabled 2430 | -8/Garrison | Triggered checkpoint 2496 | -8/Garrison | Triggered checkpoint 2511 | -8/Garrison | Entered Factory 2513 | -7/Factory | Reached level 11 2514 | -7/Factory | Upgraded with Weapon slot (x1) 2597 | -7/Factory | Build established: Wizard-Sprinter 2607 | -7/Factory | Identified exit to Lower Caves 2607 | -7/Factory | Discovered exit to Lower Caves (range 13) 2611 | -7/Factory | Identified exit to Factory 2631 | -7/Factory | Entered Lower Caves 2633 | -7/Lower Caves | Reached level 12 2680 | -7/Lower Caves | Identified exit to Lower Caves 2742 | -7/Lower Caves | Entered another Lower Caves area 2743 | -7/Lower Caves | Encountered a Warlord checkpoint 2774 | -7/Lower Caves | Discovered exit to Factory (range 9) 2817 | -7/Lower Caves | Learned location of Extension (-4) 2866 | -7/Lower Caves | Identified exit to Data Miner 2866 | -7/Lower Caves | Discovered exit to Data Miner (range 9) 2869 | -7/Lower Caves | Entered Data Miner 2869 | -7/Data Miner | Identified exit to Proximity Caves 2869 | -7/Data Miner | Discovered exit to Proximity Caves (range 6) 2875 | -7/Data Miner | Met Data Miner 2875 | -7/Data Miner | Reached level 13 2881 | -7/Data Miner | Learned location of Section 7 (-2) 2881 | -7/Data Miner | Acquired the access code to Warlord's prototype stash 2886 | -7/Data Miner | Received God Mode back door access code from Data Miner 2895 | -7/Data Miner | Entered Proximity Caves 2981 | -6/Proximity Caves | Escorted by Enhanced Grunt 2996 | -6/Proximity Caves | Reached level 14 3038 | -6/Proximity Caves | Attracted the attention of an 0b10 checkpoint 3123 | -6/Proximity Caves | Learned Factory terminal intel 3131 | -6/Proximity Caves | Discovered exit to Factory (range 14) 3299 | -6/Proximity Caves | Entered Factory 3299 | -6/Factory | Accompanied by 1 ally 3300 | -6/Factory | Loaded intel: 20 terminal locations 3301 | -6/Factory | Reached level 15 3301 | -6/Factory | Upgraded with Weapon slot (x1) 3345 | -6/Factory | Garrison activated, responded to threat 3357 | -6/Factory | Identified exit to Garrison 3360 | -6/Factory | Reached level 16 3364 | -6/Factory | Entered Garrison 3364 | -6/Garrison | Accompanied by 1 ally 3394 | -6/Garrison | Triggered checkpoint 3400 | -6/Garrison | Identified exit to Factory 3400 | -6/Garrison | Discovered exit to Factory (range 8) 3406 | -6/Garrison | Triggered checkpoint 3422 | -6/Garrison | Upgraded with Utility slot (x1) 3454 | -6/Garrison | Reached level 17 3503 | -6/Garrison | Found Prototype Device 3503 | -6/Garrison | Identified Exp. Thermal Shield 3635 | -6/Garrison | Phase Generator disabled 3650 | -6/Garrison | Triggered checkpoint 3667 | -6/Garrison | Garrison Relay disabled 3694 | -6/Garrison | Discovered exit to Factory (range 15) 3701 | -6/Garrison | Expanded RIF knowledge: Program Shield 3701 | -6/Garrison | Reached level 18 3728 | -6/Garrison | Garrison Relay disabled 3765 | -6/Garrison | Discovered exit to Factory (range 11) 3772 | -6/Garrison | Triggered checkpoint 3828 | -6/Garrison | Garrison Relay disabled 3900 | -6/Garrison | Entered Factory 3900 | -6/Factory | Accompanied by 1 ally 3904 | -6/Factory | Identified exit to Garrison 3914 | -6/Factory | Entered Garrison 3914 | -6/Garrison | Accompanied by 1 ally 3940 | -6/Garrison | Triggered checkpoint 3987 | -6/Garrison | Garrison Relay disabled 3996 | -6/Garrison | Triggered checkpoint 4015 | -6/Garrison | Spotted B-75 Beast 4026 | -6/Garrison | Triggered checkpoint 4045 | -6/Garrison | Triggered checkpoint 4074 | -6/Garrison | Triggered checkpoint 4076 | -6/Garrison | Garrison Relay disabled 4126 | -6/Garrison | Identified exit to Factory 4126 | -6/Garrison | Discovered exit to Factory (range 13) 4184 | -6/Garrison | Triggered checkpoint 4211 | -6/Garrison | Garrison Relay disabled 4284 | -6/Garrison | Discovered exit to Factory (range 10) 4307 | -6/Garrison | Triggered checkpoint 4332 | -6/Garrison | Reached level 19 4336 | -6/Garrison | Upgraded with Utility slot (x1) 4366 | -6/Garrison | Discovered exit to Factory (range 11) 4370 | -6/Garrison | Expanded RIF knowledge: Structural Interface 4374 | -6/Garrison | Spotted B-75 Beast 4374 | -6/Garrison | Spotted B-75 Beast 4387 | -6/Garrison | Allies destroyed B-75 Beast 4397 | -6/Garrison | Destroyed B-75 Beast 4479 | -6/Garrison | Garrison Relay disabled 4499 | -6/Garrison | Garrison Relay disabled 4543 | -6/Garrison | Destroyed B-75 Beast 4597 | -6/Garrison | Entered Factory 4599 | -5/Factory | Reached level 20 4796 | -5/Factory | Identified exit to Garrison 4805 | -5/Factory | Entered Garrison 4805 | -5/Garrison | Accompanied by 4 allies 4807 | -5/Garrison | Expanded RIF knowledge: Threat Obfuscation 4880 | -5/Garrison | Reached level 21 4897 | -5/Garrison | Spotted B-75 Beast 4902 | -5/Garrison | Build established: Wizard-Scout 4918 | -5/Garrison | Destroyed B-75 Beast 4954 | -5/Garrison | Triggered checkpoint 4958 | -5/Garrison | Triggered checkpoint 4973 | -5/Garrison | Triggered checkpoint 4980 | -5/Garrison | Spotted B-75 Beast 4980 | -5/Garrison | Spotted B-75 Beast 5000 | -5/Garrison | Triggered checkpoint 5040 | -5/Garrison | Garrison Relay disabled 5099 | -5/Garrison | Destroyed 10 combat bots 5162 | -5/Garrison | Triggered checkpoint 5193 | -5/Garrison | Garrison Relay disabled 5204 | -5/Garrison | Identified exit to Factory 5204 | -5/Garrison | Discovered exit to Factory (range 11) 5207 | -5/Garrison | Entered Factory 5209 | -4/Factory | Reached level 22 5210 | -4/Factory | Upgraded with Propulsion slot (x1) 5288 | -4/Factory | Reached level 23 5335 | -4/Factory | Identified exit to Upper Caves 5335 | -4/Factory | Discovered exit to Upper Caves (range 18) 5344 | -4/Factory | Entered Upper Caves 5353 | -4/Upper Caves | Found Alien Artifact 5353 | -4/Upper Caves | Identified Dimensional Node Initializer 5353 | -4/Upper Caves | Initialized slip node 5395 | -4/Upper Caves | Attracted the attention of an 0b10 outpost 5544 | -4/Upper Caves | Reached level 24 5583 | -4/Upper Caves | Upgraded with Propulsion slot (x1) 5599 | -4/Upper Caves | Destroyed 12 combat bots 5630 | -4/Upper Caves | Identified exit to Upper Caves 5630 | -4/Upper Caves | Discovered exit to Upper Caves (range 14) 5656 | -4/Upper Caves | Learned 4 Research zone layouts 5661 | -4/Upper Caves | Build established: Hacker-Scout 5682 | -4/Upper Caves | Attracted the attention of an 0b10 checkpoint 5707 | -4/Upper Caves | Learned location of Testing (-2) 5776 | -4/Upper Caves | Acquired the password to a Derelict Tinkerer's latest research 5777 | -4/Upper Caves | Found Prototype Special Weapon 5777 | -4/Upper Caves | Identified Molecular Deconstructor 5818 | -4/Upper Caves | Entered another Upper Caves area 5844 | -4/Upper Caves | Identified exit to Research 5844 | -4/Upper Caves | Discovered exit to Research (range 10) 6014 | -4/Upper Caves | Identified exit to Zhirov 6014 | -4/Upper Caves | Discovered exit to Zhirov (range 13) 6017 | -4/Upper Caves | Entered Zhirov 6017 | -4/Zhirov | Identified exit to Proximity Caves 6017 | -4/Zhirov | Discovered exit to Proximity Caves (range 3) 6065 | -4/Zhirov | Met Zhirov 6071 | -4/Zhirov | Learned location of Quarantine (-3) 6071 | -4/Zhirov | Learned location of Command (-1) 6075 | -4/Zhirov | Zhirov requested help retrieving the SGEMP Prototype 6079 | -4/Zhirov | Found Alien Artifact 6079 | -4/Zhirov | Identified Transdimensional Reconstructor 6079 | -4/Zhirov | Warped through subspace 6109 | -4/Zhirov | Found Alien Artifact 6109 | -4/Zhirov | Identified Integrated Reactor 6109 | -4/Zhirov | Installed Integrated Reactor, increased core energy generation (+10) 6123 | -4/Zhirov | Entered Proximity Caves 6125 | -3/Proximity Caves | Reached level 25 6125 | -3/Proximity Caves | Upgraded with Utility slot (x1) 6226 | -3/Proximity Caves | Discovered exit to Research (range 8) 6230 | -3/Proximity Caves | Entered Research 6231 | -3/Research | Identified exit to Research 6232 | -3/Research | Reached level 26 6232 | -3/Research | Upgraded with Weapon slot (x1) 6452 | -3/Research | Reached level 27 6562 | -3/Research | Destroyed 8 combat bots 6603 | -3/Research | Entered another Research area 6605 | -2/Research | Reached level 28 6636 | -2/Research | Spotted B-90 Cyclops 6642 | -2/Research | Identified exit to Garrison 6642 | -2/Research | Entered Garrison 6651 | -2/Garrison | Spotted B-90 Cyclops 6695 | -2/Garrison | Garrison Relay disabled 6695 | -2/Garrison | Reached level 29 6697 | -2/Garrison | Upgraded with Propulsion slot (x1) 6734 | -2/Garrison | Phase Generator disabled 6754 | -2/Garrison | Identified exit to Access 6754 | -2/Garrison | Discovered exit to Access (range 8) 6761 | -2/Garrison | Expanded RIF knowledge: Patrol Navigation 6763 | -2/Garrison | Destroyed 9 combat bots 6817 | -2/Garrison | Entered Access 6819 | -1/Access | Reached level 30 6819 | -1/Access | Reached level 31 6819 | -1/Access | Upgraded with Propulsion slot (x1) 6995 | -1/Access | Spotted B-99 Colossus 7095 | -1/Access | Identified exit to Surface 7145 | *** | Escaped! Last Messages --------------- 07134_ Earth disintegrates. 07134_ Reinforced Barrier destabilizing. 07135_ Reinforced Barrier disintegrates. 07135_ Entropy package melds with Main Access Shell. 07136_ >> Watcher Feeds: Established visual feed link with W-44 Eye. 07137_ Concrete disintegrates. 07137_ >> Watcher Feeds: Feed link from W-44 Eye lost. 07137_ Concrete destabilizing. 07138_ Entropy package melds with Main Access Shell. 07142_ Concrete disintegrates. 07142_ >> Watcher Feeds: Established visual feed link with W-44 Eye. 07142_ Concrete destabilizing. 07142_ Main Access Shell disintegrates. 07142_ Concrete destabilizing. 07144_ Concrete disintegrates. 07144_ >> Watcher Feeds: Feed link from W-44 Eye lost. 07144_ The unstable cave ceiling collapses. 07144_ Concrete destabilizing. 07145_ >> Watcher Feeds: Established visual feed link with W-44 Eye. [Achievement: Epsilon Run] Map ----- +----------------------------------------------------+ | ?????????????????????????????????????????????????? | | ?????????????????????????????????????????????????? | | ?????????????????????????????????????????????????? | | ?????????????????????????????????????????????????? | | ?????????????????????????????????????????????????? | | ?????????????????????????????????????????????????? | | ?????????????????????????????????????????????????? | | ?????????###########?????????????????????????????? | | ?????????# #?????????????????????????????? | | ?????????# #?????????????????????????????? | | ?????????#"""""w #?? ##??????????????k?????????? | | ?????????#""""" # #####?????R??????????????? | | ?????????#""""" + Y ug g ???????????? | | ?????????#""""" # gg ???????????? | | ?????????#""""" #?? ##########???????????????? | | ?????????# #????#????????????????????????? | | ?????????# #?????????????????????????????? | | ?????????###########??????????????????t??????????? | | ?????????????????????????????????????????????????? | | ?????????????????????????????????????????????????? | | ?????????????????????????????#"??????????????????? | | ???????????????????????????? "??????????????????? | | ??????????????BB???????????? "??????????????????? | | ??????????????BB??????"""""" "??????????????????? | | ??????????????????????" " "??????????????????? | | ??????????????????????" "@ " "??????????????????? | | ??????????????????????" "" " "??????????????????? | | ????????????????????"?" " "??????????????????? | | ??????????????BB????" """ "" "??????????????????? | | ??????????????BB????" "??????????????????? | | ????????????????????" "??????????????????? | | ????????????????????###### ##"??????????????????? | | ???????????????????????## # #???????????????????? | | ???????????????????????# ###???????????????????? | | ???????????????????????# #????????????????????? | | ???????????????????????# # ##????????????????????? | | ???????????????????????### ###???????????????????? | | ????????????????######### o ########????????????? | | ????????????????# R ????? | | ????????????????# ????? | | ????????????????# #+#################+###???????? | | ????????????????# ?# [ #????????????????????? | | ????????????????#??# #????????????????????? | | ???????????????????# #????????????????????? | | ???????????????????# #????????????????????? | | ???????????????????# #????????????????????? | | ???????????????????+ #????????????????????? | | ???????????????????# #????????????????????? | | ???????????????????# #????????????????????? | | ?????????????????k # #????????????????????? | +----------------------------------------------------+ Best States ------------- Heat Dissipation 85 Energy Generation 65 Energy Capacity 750 Matter Stores 500 Matter Capacity 500 Sight Range 18 Robot Scan Range 46 Terrain Scan Range 14 Terrain Scan Density 310 EM Shielding 2 Armor Coverage 150 Resistance: KI 40 Resistance: TH 65 Resistance: EX 40 Resistance: EM 60 Resistance: I 35 Resistance: S 35 Resistance: P 35 Utility Shielding 33 Evasion (%) 78 Targeting Accuracy 14 Offensive Hacking 60 Defensive Hacking 5 Relay Coupler Types 458 Relay Coupler Value 5 Item Schematics ----------------- Combat Drone Bay | -7/Data Miner | Free Exp. Cesium-ion Thruster | -7/Data Miner | Free Lgt. Regenerative Plating | -7/Data Miner | Free Triangulator | -7/Data Miner | Free Exp. Sensor Array | -7/Data Miner | Free Exp. Terrain Scan Processor | -7/Data Miner | Free Exp. Targeting Computer | -7/Data Miner | Free Plasma Sword | -7/Data Miner | Free Exp. Transmission Jammer | -7/Data Miner | Free Assault Drone Bay | -4/Zhirov | Free Exp. Heat Sink | -4/Zhirov | Free Exp. Optical Array | -4/Zhirov | Free Imp. Arc Thrower | -4/Zhirov | Free Robot Schematics ------------------ S-27 Virus | -7/Data Miner | Free G-50 Soldier | -7/Data Miner | Free G-67 Veteran | -7/Data Miner | Free L-41 Fighter | -7/Data Miner | Free X-72 Disruptor | -7/Data Miner | Free H-66 Slayer | -7/Data Miner | Free I-36 Angel | -7/Data Miner | Free I-47 Archangel | -7/Data Miner | Free Fabricated ------------ Nothing Alien Tech Used ----------------- Dimensional Node Initializer Transdimensional Reconstructor Integrated Reactor Achievements -------------- Adventurer Alien Tech Assimilation Complete Can't Catch Me Deconstruction Epsilon Run Executioner Explorer Hehehe Infiltrator Subspace Traveler The Science Guy Challenges ------------ None RPGLIKE | -11 -10 -10 -10 -9 -8 -8 -8 -8 -7 -7 -7 -7 -6 -6 -6 -6 -6 -5 -5 -4 -4 -4 -4 -3 -3 -2 -2 -1 --------- Run | Scr Mat Min Exi Min Mat Gar Mat Gar Fac Low Low Dat Pro Fac Gar Fac Gar Fac Gar Fac Upp Upp Zhi Pro Res Res Gar Acc Levels Raised 30 | . . 1 . 1 4 . 2 1 1 1 . 1 1 2 2 . 1 1 1 2 1 . . 1 2 1 1 2 XP Earned 51285 | 6000 1405 500 200 2322 4747 1300 1530 2522 1745 650 500 650 2145 2402 3244 . 1802 1500 1973 2062 1666 244 316 1190 2719 2000 1756 2195 XP Spent 49870 | 5950 . 1540 . 1510 5925 . 3075 1440 1535 1480 . 1470 1200 1855 2900 . 3115 1400 . 3075 2000 . . 2000 3500 . 2300 2600 Upgrades 95 | 17 . 12 . 4 12 . 5 7 2 6 . 5 1 2 6 . 3 2 . 5 1 . . 1 2 . 1 1 Power Slot 1 | . . . . . 1 . . . . . . . . . . . . . . . . . . . . . . . Propulsion Slot 8 | 1 . . . 1 1 . 1 . . . . . . . . . . . . 1 1 . . . . . 1 1 Utility Slot 6 | 1 . 1 . . 1 . . . . . . . . . 1 . 1 . . . . . . 1 . . . . Weapon Slot 6 | 2 . . . . . . 1 . 1 . . . . 1 . . . . . . . . . . 1 . . . Core Integrity 15 | . . 8 . . 3 . . . 1 . . 1 . 1 . . 1 . . . . . . . . . . . Heat Dissipation 10 | 1 . 2 . 1 1 . 1 . . 4 . . . . . . . . . . . . . . . . . . Energy Generation 2 | . . . . . 1 . . . . 1 . . . . . . . . . . . . . . . . . . Energy Storage 3 | . . . . . . . . . . . . 2 . . . . . . . 1 . . . . . . . . Matter Storage 4 | . . . . . . . 2 . . . . . . . . . . . . 2 . . . . . . . . Mass Support 3 | . . 1 . . . . . 1 . . . . . . . . . 1 . . . . . . . . . . Inventory Capacity 6 | 4 . . . . . . . . . . . . . . . . 1 . . . . . . . 1 . . . Sight Range 2 | . . . . . . . . 1 . . . . . . . . . 1 . . . . . . . . . . Sensor Range 13 | 8 . . . . . . . . . . . . . . 5 . . . . . . . . . . . . . Terrain Scan Density 3 | . . . . . 1 . . 1 . 1 . . . . . . . . . . . . . . . . . . Ranged Accuracy 3 | . . . . . . . . . . . . 2 . . . . . . . 1 . . . . . . . . Hack Attack % 6 | . . . . 2 3 . . . . . . . 1 . . . . . . . . . . . . . . . Hack Defense % 1 | . . . . . . . . 1 . . . . . . . . . . . . . . . . . . . . KI Resistance % 1 | . . . . . . . . 1 . . . . . . . . . . . . . . . . . . . . TH Resistance % 1 | . . . . . . . . 1 . . . . . . . . . . . . . . . . . . . . EX Resistance % 1 | . . . . . . . . 1 . . . . . . . . . . . . . . . . . . . . Protomatter Created 3794 | . 123 . . 23 52 . 273 422 . . . . 207 54 500 . 338 . 398 132 782 124 . . 271 . 95 . Integrity Restored 5115 | . 159 . . 69 133 . 401 200 . 116 . . 162 . 567 . 651 . 1133 101 379 . . . 480 . 285 279 Core 4091 | . 122 . . 69 62 . 325 157 . 61 . . 119 . 432 . 534 . 884 73 301 . . . 388 . 285 279 Parts 1024 | . 37 . . . 71 . 76 43 . 55 . . 43 . 135 . 117 . 249 28 78 . . . 92 . . . Protomatter Decayed 2543 | . 14 . . . . . 82 347 . . . . 132 . 259 . 308 . 377 94 558 124 . . 164 . 84 . Game ------ Seed ContainmentShrapnelBeam Manual? 0 Play Time 03:22:06 Cumulative 30.1 hours Start 2021.02.28 @ 09:31:32 End 2021.02.28 @ 14:34:45 Sessions 1 Manual Loads 0 Difficulty Explorer Special Mode Winter2019/RPGLIKE Game No. 38 Rogue 15 Adventurer 15 Explorer 8 Win Type 0 Total 1 Types 1/0/0/0/0/0/0/0/0 Lore% 37 Gallery% 41 Achievement% 34 Wizard Run 0 Options --------- ASCII 0 Keyboard 0 Movement Numpad Keybinds 0 Fullscreen 2 Font 18/Terminus Map View 76x50 Tactical HUD 1 Map Filters NONE Filters NONE Steam 1 RUN: 7820631f-bfee-4b14-8db9-07c8d2ab20ac